fUST/lending_fUST_20250723
["ID","MTS","AMOUNT","RATE_DAILY","PERIOD"]
[374303563,1753270251182,-2000.0,0.00021335,2]
[374303564,1753270251191,-2000.0,0.00021335,2]
[374303565,1753270251201,-460.0,0.00021369,2]
[374303566,1753270251210,-460.0,0.00021369,2]
[374303567,1753270251219,-460.0,0.00021369,2]
[374303568,1753270251229,-460.0,0.00021369,2]
[374303569,1753270251238,-460.0,0.00021369,2]
[374303570,1753270251247,-460.0,0.00021369,2]
[374303571,1753270251257,-460.0,0.00021369,2]
[374303572,1753270251266,-460.0,0.00021369,2]
[374303573,1753270251276,-460.0,0.00021369,2]
[374303574,1753270251285,-1238.69,0.00021369,2]
[374303575,1753270251296,-573.91,0.00021369,2]
[374303577,1753270251306,-460.0,0.00021369,2]
[374303579,1753270251317,-672.03,0.00021369,2]
[374303581,1753270251326,-460.0,0.00021369,2]
[374303583,1753270251335,-599.95,0.00021369,2]
[374303585,1753270251345,-649.34,0.00021369,2]
[374303587,1753270251354,-460.0,0.00021369,2]
[374303588,1753270251363,-556.75,0.00021369,2]
[374303590,1753270251373,-293.8,0.00021369,2]
[374303592,1753270251383,-460.0,0.00021369,2]
[374303594,1753270251394,-460.0,0.00021369,2]
[374303596,1753270251403,-460.0,0.00021369,2]
[374303598,1753270251413,-460.0,0.00021369,2]
[374303600,1753270251422,-460.0,0.00021369,2]
[374303602,1753270251431,-460.0,0.00021369,2]
[374303604,1753270251441,-460.0,0.00021369,2]
[374303606,1753270251450,-460.0,0.00021369,2]
[374303608,1753270251459,-718.71,0.00021369,2]
[374303610,1753270251469,-470.47,0.00021369,2]
[374303612,1753270251478,-460.0,0.00021369,2]
[374303614,1753270251488,-460.0,0.00021369,2]
[374303616,1753270251498,-566.09,0.00021369,2]
[374303618,1753270251507,-7017.22,0.00021369,2]
[374303620,1753270251517,-460.0,0.00021369,2]
[374303622,1753270251526,-837.35,0.00021369,2]
[374303624,1753270251536,-1975.6,0.00021369,2]
[374303626,1753270251546,-497.72,0.00021369,2]
[374303628,1753270251555,-460.0,0.00021369,2]
[374303630,1753270251565,-460.0,0.00021369,2]
[374303632,1753270251574,-519.30453808,0.00021369,2]
[374303634,1753270251582,-460.0,0.00021369,2]
[374303636,1753270251591,-636.41,0.00021369,2]
[374303637,1753270251601,-3910.58,0.00021369,2]
[374303639,1753270251610,-460.0,0.00021369,2]
[374303641,1753270251619,-761.41,0.00021369,2]
[374303643,1753270251629,-593.02,0.00021369,2]
[374303645,1753270251638,-460.0,0.00021369,2]
[374303647,1753270251647,-870.07,0.00021369,2]
[374303649,1753270251656,-2426.86,0.00021369,2]
[374303651,1753270251665,-460.0,0.00021369,2]
[374303653,1753270251675,-460.0,0.00021369,2]
[374303655,1753270251684,-2897.99,0.00021369,2]
[374303657,1753270251693,-1862.37,0.00021369,2]
[374303659,1753270251702,-3318.78,0.00021369,2]
[374303661,1753270251712,-460.0,0.00021369,2]
[374303663,1753270251723,-563.99,0.00021369,2]
[374303665,1753270251733,-460.0,0.00021369,2]
[374303667,1753270251742,-591.43,0.00021369,2]
[374303669,1753270251751,-13852.46,0.00021369,2]
[374303671,1753270251760,-3238.95,0.00021369,2]
[374303673,1753270251770,-514.65,0.00021369,2]
[374303674,1753270251780,-460.0,0.00021369,2]
[374303676,1753270251789,-1738.97,0.00021369,2]
[374303678,1753270251800,-460.0,0.00021369,2]
[374303680,1753270251811,-597.34,0.00021369,2]
[374303682,1753270251820,-460.0,0.00021369,2]
[374303684,1753270251829,-460.0,0.00021369,2]
[374303686,1753270251840,-1270.47,0.00021369,2]
[374303688,1753270251854,-538.77,0.00021369,2]
[374303690,1753270251863,-460.0,0.00021369,2]
[374303692,1753270251873,-460.0,0.00021369,2]
[374303694,1753270251883,-1243.64,0.00021369,2]
[374303696,1753270251893,-460.0,0.00021369,2]
[374303698,1753270251902,-4276.54,0.00021369,2]
[374303700,1753270251911,-1592.37,0.00021369,2]
[374303702,1753270251921,-460.0,0.00021369,2]
[374303704,1753270251931,-2748.55,0.00021369,2]
[374303706,1753270251941,-1500.0,0.00021372,2]
[374303708,1753270251950,-1500.0,0.00021372,2]
[374303710,1753270251960,-3395.88933311,0.00021395,2]
[374303712,1753270251970,-360.0,0.00021396,2]
[374303713,1753270251980,-500.0,0.00021419,2]
[374303715,1753270251990,-500.0,0.00021419,2]
[374303717,1753270251999,-500.0,0.00021419,2]
[374303719,1753270252010,-500.0,0.00021419,2]
[374303721,1753270252019,-500.91301163,0.00021419,2]
[374303723,1753270252029,-163.98697154,0.00021419,2]
[374303725,1753270252038,-500.66791734,0.00021419,2]
[374303727,1753270252052,-274.63969605,0.00021643,2]
[374303729,1753270252062,-460.0,0.00021643,2]
[374303731,1753270252073,-460.0,0.00021643,2]
[374303733,1753270252083,-460.0,0.00021643,2]
[374303735,1753270252093,-460.0,0.00021643,2]
[374303737,1753270252104,-460.0,0.00021643,2]
[374303739,1753270252114,-460.0,0.00021643,2]
[374303741,1753270252123,-460.0,0.00021643,2]
[374303743,1753270252134,-460.0,0.00021643,2]
[374303744,1753270252143,-1238.69,0.00021643,2]
[374303752,1753270252281,-573.91,0.00021643,2]
[374303753,1753270252292,-672.03,0.00021643,2]
[374303754,1753270252304,-460.0,0.00021643,2]
[374303755,1753270252314,-460.0,0.00021643,2]
[374303756,1753270252324,-599.95,0.00021643,2]
[374303757,1753270252334,-649.34,0.00021643,2]
[374303758,1753270252343,-460.0,0.00021643,2]
[374303759,1753270252353,-556.75,0.00021643,2]
[374303760,1753270252363,-410.38,0.00021643,2]
[374303761,1753270252372,-460.0,0.00021643,2]
[374303762,1753270252382,-460.0,0.00021643,2]
[374303763,1753270252391,-197.17826598,0.00021643,2]
[374303764,1753270252401,-460.0,0.00021643,2]
[374303765,1753270252411,-460.0,0.00021643,2]
[374303766,1753270252420,-460.0,0.00021643,2]
[374303767,1753270252430,-211.5186869,0.00021643,2]
[374303768,1753270252440,-718.71,0.00021643,2]
[374303769,1753270252450,-470.47,0.00021643,2]
[374303770,1753270252460,-460.0,0.00021643,2]
[374303771,1753270252469,-460.0,0.00021643,2]
[374303772,1753270252479,-566.09,0.00021643,2]
[374303773,1753270252488,-7017.22,0.00021643,2]
[374303774,1753270252498,-460.0,0.00021643,2]
[374303775,1753270252507,-837.35,0.00021643,2]
[374303777,1753270252517,-1975.6,0.00021643,2]
[374303778,1753270252527,-497.72,0.00021643,2]
[374303779,1753270252536,-460.0,0.00021643,2]
[374303780,1753270252547,-460.0,0.00021643,2]
[374303781,1753270252556,-460.0,0.00021643,2]
[374303782,1753270252566,-636.41,0.00021643,2]
[374303783,1753270252575,-3910.58,0.00021643,2]
[374303784,1753270252585,-460.0,0.00021643,2]
[374303785,1753270252595,-761.41,0.00021643,2]
[374303786,1753270252604,-593.02,0.00021643,2]
[374303787,1753270252614,-460.0,0.00021643,2]
[374303788,1753270252623,-870.07,0.00021643,2]
[374303789,1753270252632,-2426.86,0.00021643,2]
[374303790,1753270252642,-460.0,0.00021643,2]
[374303791,1753270252652,-2897.99,0.00021643,2]
[374303792,1753270252662,-1862.37,0.00021643,2]
[374303793,1753270252671,-460.0,0.00021643,2]
[374303794,1753270252681,-3318.78,0.00021643,2]
[374303795,1753270252691,-563.99,0.00021643,2]
[374303796,1753270252700,-460.0,0.00021643,2]
[374303797,1753270252710,-591.43,0.00021643,2]
[374303798,1753270252719,-460.0,0.00021643,2]
[374303799,1753270252728,-13852.46,0.00021643,2]
[374303800,1753270252738,-3238.95,0.00021643,2]
[374303801,1753270252747,-514.65,0.00021643,2]
[374303802,1753270252757,-460.0,0.00021643,2]
[374303803,1753270252767,-1738.97,0.00021643,2]
[374303804,1753270252776,-460.0,0.00021643,2]
[374303805,1753270252785,-597.34,0.00021643,2]
[374303806,1753270252795,-460.0,0.00021643,2]
[374303807,1753270252804,-151.68,0.00021643,2]
[374303808,1753270252814,-1270.47,0.00021643,2]
[374303809,1753270252824,-538.77,0.00021643,2]
[374303810,1753270252834,-460.0,0.00021643,2]
[374303811,1753270252846,-195.74,0.00021643,2]
[374303812,1753270252857,-1243.64,0.00021643,2]
[374303813,1753270252869,-460.0,0.00021643,2]
[374303814,1753270252878,-4276.54,0.00021643,2]
[374303815,1753270252889,-1592.37,0.00021643,2]
[374303816,1753270252899,-460.0,0.00021643,2]
[374303817,1753270252909,-2748.55,0.00021643,2]
[374303818,1753270252918,-1618.52113841,0.00021644,2]
[374303819,1753270252930,-375.78745415,0.00021661,2]
[374303820,1753270252940,-179.82017982,0.00021664,2]
[374303821,1753270252949,-3395.88933311,0.00021709,2]
[374303822,1753270252959,-10559.44545926,0.00021739,2]
[374303823,1753270252969,-981.24919533,0.00021817,2]
[374303824,1753270252978,-2500.0,0.00021825,2]
[374303825,1753270252988,-2500.0,0.00021825,2]
[374303826,1753270252997,-284.23383675,0.00021836,5]
[374303827,1753270253007,-4873.76786809,0.00021873,2]
[374303828,1753270253017,-1017.05724765,0.00021883,2]
[374303829,1753270253026,-2500.0,0.00021883,2]
[374303830,1753270253044,-460.0,0.00021917,2]
[374303831,1753270253055,-481.75,0.00021917,2]
[374303832,1753270253065,-576.88,0.00021917,2]
[374303833,1753270253075,-460.0,0.00021917,2]
[374303834,1753270253085,-460.0,0.00021917,2]
[374303835,1753270253094,-352.85766504,0.00021917,2]
[374303836,1753270253104,-460.0,0.00021917,2]
[374303837,1753270253113,-460.0,0.00021917,2]
[374303838,1753270253123,-1238.69,0.00021917,2]
[374303839,1753270253132,-573.91,0.00021917,2]
[374303840,1753270253142,-672.03,0.00021917,2]
[374303841,1753270253151,-460.0,0.00021917,2]
[374303842,1753270253161,-460.0,0.00021917,2]
[374303843,1753270253170,-599.95,0.00021917,2]
[374303844,1753270253180,-649.34,0.00021917,2]
[374303845,1753270253189,-460.0,0.00021917,2]
[374303846,1753270253199,-556.75,0.00021917,2]
[374303847,1753270253208,-415.02,0.00021917,2]
[374303848,1753270253218,-460.0,0.00021917,2]
[374303849,1753270253227,-460.0,0.00021917,2]
[374303850,1753270253237,-460.0,0.00021917,2]
[374303851,1753270253252,-460.0,0.00021917,2]
[374303852,1753270253266,-718.71,0.00021917,2]
[374303853,1753270253275,-470.47,0.00021917,2]
[374303854,1753270253285,-460.0,0.00021917,2]
[374303855,1753270253294,-250.60818836,0.00021917,2]
[374303856,1753270253305,-566.09,0.00021917,2]
[374303857,1753270253315,-7017.22,0.00021917,2]
[374303858,1753270253324,-460.0,0.00021917,2]
[374303859,1753270253334,-837.35,0.00021917,2]
[374303860,1753270253344,-1975.6,0.00021917,2]
[374303861,1753270253353,-497.72,0.00021917,2]
[374303863,1753270253363,-460.0,0.00021917,2]
[374303865,1753270253372,-460.0,0.00021917,2]
[374303867,1753270253381,-460.0,0.00021917,2]
[374303869,1753270253391,-636.41,0.00021917,2]
[374303871,1753270253400,-3910.58,0.00021917,2]
[374303873,1753270253409,-460.0,0.00021917,2]
[374303875,1753270253419,-761.41,0.00021917,2]
[374303877,1753270253428,-593.02,0.00021917,2]
[374303879,1753270253438,-460.0,0.00021917,2]
[374303881,1753270253447,-870.07,0.00021917,2]
[374303883,1753270253458,-2426.86,0.00021917,2]
[374303885,1753270253467,-460.0,0.00021917,2]
[374303887,1753270253477,-2897.99,0.00021917,2]
[374303889,1753270253486,-1862.37,0.00021917,2]
[374303891,1753270253495,-460.0,0.00021917,2]
[374303893,1753270253506,-3318.78,0.00021917,2]
[374303895,1753270253515,-563.99,0.00021917,2]
[374303897,1753270253524,-460.0,0.00021917,2]
[374303899,1753270253533,-591.43,0.00021917,2]
[374303900,1753270253543,-412.74,0.00021917,2]
[374303901,1753270253553,-13852.46,0.00021917,2]
[374303902,1753270253562,-3238.95,0.00021917,2]
[374303903,1753270253571,-514.65,0.00021917,2]
[374303904,1753270253581,-460.0,0.00021917,2]
[374303905,1753270253590,-1738.97,0.00021917,2]
[374303906,1753270253599,-460.0,0.00021917,2]
[374303907,1753270253608,-597.34,0.00021917,2]
[374303909,1753270253618,-460.0,0.00021917,2]
[374303911,1753270253628,-1270.47,0.00021917,2]
[374303913,1753270253637,-538.77,0.00021917,2]
[374303915,1753270253647,-460.0,0.00021917,2]
[374303917,1753270253656,-1243.64,0.00021917,2]
[374303919,1753270253666,-4276.54,0.00021917,2]
[374303921,1753270253675,-242.61563436,0.00021917,2]
[374303923,1753270253685,-1592.37,0.00021917,2]
[374303925,1753270253695,-460.0,0.00021917,2]
[374303927,1753270253705,-2748.55,0.00021917,2]
[374303929,1753270253714,-500.0,0.00021917,2]
[374303931,1753270253723,-500.0,0.00021917,2]
[374303933,1753270253733,-500.0,0.00021917,2]
[374303935,1753270253742,-500.0,0.00021917,2]
[374303937,1753270253752,-500.0,0.00021917,2]
[374303939,1753270253761,-500.0,0.00021917,2]
[374303941,1753270253770,-500.0,0.00021917,2]
[374303943,1753270253780,-153.0,0.00021918,2]
[374303945,1753270253789,-153.0,0.00021918,2]
[374303947,1753270253799,-153.0,0.00021918,2]
[374303949,1753270253808,-153.0,0.00021918,2]
[374303951,1753270253818,-153.0,0.00021918,2]
[374303953,1753270253828,-153.0,0.00021918,2]
[374303955,1753270253838,-153.0,0.00021918,2]
[374303957,1753270253855,-153.0,0.00021918,2]
[374303959,1753270253864,-153.0,0.00021918,2]
[374303961,1753270253874,-153.0,0.00021918,2]
[374303963,1753270253884,-153.0,0.00021918,2]
[374303965,1753270253894,-153.0,0.00021918,2]
[374303967,1753270253903,-153.0,0.00021918,2]
[374303969,1753270253913,-153.0,0.00021918,2]
[374303971,1753270253922,-153.0,0.00021918,2]
[374303973,1753270253933,-153.0,0.00021918,2]
[374303975,1753270253942,-153.0,0.00021918,2]
[374303977,1753270253951,-153.0,0.00021918,2]
[374303979,1753270253960,-153.0,0.00021918,2]
[374303981,1753270253969,-153.0,0.00021918,2]
[374303983,1753270253979,-153.0,0.00021918,2]
[374303985,1753270253988,-153.0,0.00021918,2]
[374303987,1753270253998,-153.0,0.00021918,2]
[374303989,1753270254008,-153.0,0.00021918,2]
[374303991,1753270254017,-153.0,0.00021918,2]
[374303993,1753270254027,-153.0,0.00021918,2]
[374303995,1753270254037,-153.0,0.00021918,2]
[374303997,1753270254047,-153.0,0.00021918,2]
[374303999,1753270254057,-153.0,0.00021918,2]
[374304001,1753270254066,-153.0,0.00021918,2]
[374304002,1753270254076,-153.0,0.00021918,2]
[374304004,1753270254085,-153.0,0.00021918,2]
[374304006,1753270254095,-153.0,0.00021918,2]
[374304008,1753270254105,-153.0,0.00021918,2]
[374304011,1753270254115,-153.0,0.00021918,2]
[374304013,1753270254125,-153.0,0.00021918,2]
[374304015,1753270254135,-153.0,0.00021918,2]
[374304017,1753270254144,-153.0,0.00021918,2]
[374304019,1753270254153,-153.0,0.00021918,2]
[374304021,1753270254163,-153.0,0.00021918,2]
[374304023,1753270254172,-153.0,0.00021918,2]
[374304025,1753270254183,-153.0,0.00021918,2]
[374304027,1753270254192,-153.0,0.00021918,2]
[374304029,1753270254201,-153.0,0.00021918,2]
[374304031,1753270254210,-153.0,0.00021918,2]
[374304033,1753270254219,-153.0,0.00021918,2]
[374304034,1753270254228,-153.0,0.00021918,2]
[374304036,1753270254240,-153.0,0.00021918,2]
[374304038,1753270254249,-153.0,0.00021918,2]
[374304040,1753270254258,-153.0,0.00021918,2]
[374304042,1753270254267,-153.0,0.00021918,2]
[374304044,1753270254277,-153.0,0.00021918,2]
[374304046,1753270254286,-153.0,0.00021918,2]
[374304048,1753270254295,-153.0,0.00021918,2]
[374304050,1753270254309,-153.0,0.00021918,2]
[374304052,1753270254318,-153.0,0.00021918,2]
[374304054,1753270254328,-153.0,0.00021918,2]
[374304056,1753270254337,-153.0,0.00021918,2]
[374304058,1753270254346,-153.0,0.00021918,2]
[374304060,1753270254355,-153.0,0.00021918,2]
[374304062,1753270254364,-153.0,0.00021918,2]
[374304064,1753270254373,-153.0,0.00021918,2]
[374304066,1753270254382,-153.0,0.00021918,2]
[374304068,1753270254391,-153.0,0.00021918,2]
[374304070,1753270254401,-153.0,0.00021918,2]
[374304072,1753270254410,-153.0,0.00021918,2]
[374304073,1753270254419,-153.0,0.00021918,2]
[374304076,1753270254428,-153.0,0.00021918,2]
[374304078,1753270254438,-153.0,0.00021918,2]
[374304079,1753270254446,-153.0,0.00021918,2]
[374304081,1753270254456,-153.0,0.00021918,2]
[374304083,1753270254465,-153.0,0.00021918,2]
[374304085,1753270254474,-153.0,0.00021918,2]
[374304087,1753270254483,-153.0,0.00021918,2]
[374304088,1753270254497,-153.0,0.00021918,2]
[374304089,1753270254507,-153.0,0.00021918,2]
[374304090,1753270254516,-153.0,0.00021918,2]
[374304091,1753270254526,-153.0,0.00021918,2]
[374304092,1753270254536,-153.0,0.00021918,2]
[374304093,1753270254546,-153.0,0.00021918,2]
[374304094,1753270254557,-153.0,0.00021918,2]
[374304095,1753270254566,-153.0,0.00021918,2]
[374304096,1753270254575,-153.0,0.00021918,2]
[374304097,1753270254585,-153.0,0.00021918,2]
[374304098,1753270254719,-153.0,0.00021918,2]
[374304099,1753270254729,-153.0,0.00021918,2]
[374304100,1753270254739,-153.0,0.00021918,2]
[374304101,1753270254749,-153.0,0.00021918,2]
[374304102,1753270254759,-153.0,0.00021918,2]
[374304103,1753270254769,-153.0,0.00021918,2]
[374304104,1753270254778,-153.0,0.00021918,2]
[374304105,1753270254790,-153.0,0.00021918,2]
[374304106,1753270254799,-153.0,0.00021918,2]
[374304107,1753270254811,-153.0,0.00021918,2]
[374304108,1753270254821,-153.0,0.00021918,2]
[374304109,1753270254831,-153.0,0.00021918,2]
[374304110,1753270254840,-153.0,0.00021918,2]
[374304111,1753270254854,-153.0,0.00021918,2]
[374304113,1753270254863,-153.0,0.00021918,2]
[374304115,1753270254873,-153.0,0.00021918,2]
[374304116,1753270254882,-153.0,0.00021918,2]
[374304117,1753270254893,-153.0,0.00021918,2]
[374304118,1753270254902,-153.0,0.00021918,2]
[374304119,1753270254912,-153.0,0.00021918,2]
[374304120,1753270254923,-153.0,0.00021918,2]
[374304121,1753270254933,-153.0,0.00021918,2]
[374304123,1753270254943,-153.0,0.00021918,2]
[374304125,1753270254953,-153.0,0.00021918,2]
[374304127,1753270254963,-153.0,0.00021918,2]
[374304129,1753270254973,-150.0,0.00021918,2]
[374304131,1753270254982,-200.0,0.00021918,2]
[374304133,1753270254992,-1514.30487784,0.0002192,2]
[374304134,1753270255001,-630.13669362,0.0002192,2]
[374304136,1753270255012,-156.13,0.0002192,4]
[374304138,1753270255022,-170.84,0.0002192,4]
[374304140,1753270255040,-199.3240378,0.0002192,4]
[374304141,1753270255059,-199.32,0.0002192,4]
[374304142,1753270255070,-460.0,0.00021944,2]
[374304143,1753270255079,-594.79640088,0.00021967,2]
[374304144,1753270255089,-500.0,0.00021967,2]
[374304145,1753270255099,-500.0,0.00021973,2]
[374304146,1753270255109,-500.0,0.00021973,2]
[374304147,1753270255119,-500.0,0.00021973,2]
[374304148,1753270255128,-500.0,0.00021973,2]
[374304149,1753270255138,-500.0,0.00021973,2]
[374304150,1753270255148,-500.0,0.00021973,2]
[374304151,1753270255158,-500.0,0.00021973,2]
[374304152,1753270255168,-500.55543963,0.00021973,2]
[374304153,1753270255177,-500.0,0.00021973,2]
[374304154,1753270255187,-500.0,0.00021973,2]
[374304155,1753270255197,-280.22416713,0.00021973,2]
[374304156,1753270255207,-500.0,0.00021973,2]
[374304157,1753270255217,-500.0,0.00021973,2]
[374304158,1753270255226,-500.0,0.00021973,2]
[374304159,1753270255236,-274.27384637,0.00021973,2]
[374304160,1753270255246,-500.0,0.00021973,2]
[374304161,1753270255257,-158.27645893,0.00021973,2]
[374304162,1753270255267,-550.14382085,0.00021973,2]
[374304163,1753270255276,-500.0,0.00021973,2]
[374304164,1753270255286,-641.49978633,0.00021973,2]
[374304165,1753270255296,-500.8524135,0.00021973,2]
[374304166,1753270255307,-386.60069791,0.00021973,2]
[374304167,1753270255317,-500.0,0.00021973,2]
[374304168,1753270255327,-500.0,0.00021973,2]
[374304169,1753270255336,-500.0,0.00021973,2]
[374304170,1753270255346,-500.0,0.00021973,2]
[374304171,1753270255355,-500.0,0.00021973,2]
[374304172,1753270255365,-500.0,0.00021973,2]
[374304173,1753270255374,-500.0,0.00021973,2]
[374304174,1753270255383,-500.0,0.00021973,2]
[374304175,1753270255394,-552.78730248,0.00021973,2]
[374304176,1753270255403,-500.0,0.00021973,2]
[374304177,1753270255413,-500.0,0.00021973,2]
[374304178,1753270255423,-500.0,0.00021973,2]
[374304179,1753270255432,-500.0,0.00021973,2]
[374304180,1753270255442,-500.0,0.00021973,2]
[374304181,1753270255451,-500.0,0.00021973,2]
[374304182,1753270255460,-500.0,0.00021973,2]
[374304183,1753270255471,-500.0,0.00021973,2]
[374304184,1753270255480,-500.0,0.00021973,2]
[374304185,1753270255489,-500.0,0.00021973,2]
[374304186,1753270255499,-500.0,0.00021973,2]
[374304187,1753270255508,-500.0,0.00021973,2]
[374304188,1753270255518,-500.0,0.00021973,2]
[374304189,1753270255528,-500.0,0.00021973,2]
[374304190,1753270255538,-500.0,0.00021973,2]
[374304191,1753270255547,-500.0,0.00021973,2]
[374304192,1753270255558,-500.0,0.00021973,2]
[374304193,1753270255567,-578.18285853,0.00021973,2]
[374304194,1753270255578,-500.0,0.00021973,2]
[374304195,1753270255587,-500.0,0.00021973,2]
[374304196,1753270255597,-15224.89,0.00022,7]
[374304197,1753270255606,-67330.65,0.00022,2]
[374304198,1753270255616,-1686.05,0.00022,7]
[374304199,1753270255625,-3683.24,0.00022,7]
[374304200,1753270255635,-167.0,0.00022,2]
[374304201,1753270255644,-75300.72313164,0.00022,2]
[374304202,1753270255654,-353.00342351,0.00022,2]
[374304203,1753270255663,-51689.51562154,0.00022,2]
[374304204,1753270255673,-551.01397171,0.00022,2]
[374304205,1753270255683,-20493.81048452,0.00022,2]
[374304206,1753270255693,-12622.36869388,0.00022,7]
[374304207,1753270255703,-476.696448,0.00022,7]
[374304208,1753270255712,-160.0,0.00022,7]
[374304209,1753270255722,-7024.14957748,0.00022091,2]
[374304210,1753270255731,-1010.05668947,0.000221,2]
[374304211,1753270255741,-3395.88933311,0.00022157,2]
[374304212,1753270255750,-360.39,0.0002218,2]
[374304213,1753270255760,-472.58471755,0.00022189,2]
[374304214,1753270255770,-316.3,0.00022191,2]
[374304215,1753270255779,-460.0,0.00022191,2]
[374304216,1753270255789,-460.0,0.00022191,2]
[374304217,1753270255799,-460.0,0.00022191,2]
[374304218,1753270255811,-460.0,0.00022191,2]
[374304219,1753270255820,-1238.69,0.00022191,2]
[374304220,1753270255830,-573.91,0.00022191,2]
[374304221,1753270255840,-672.03,0.00022191,2]
[374304222,1753270255854,-460.0,0.00022191,2]
[374304223,1753270255865,-460.0,0.00022191,2]
[374304224,1753270255875,-599.95,0.00022191,2]
[374304225,1753270255885,-649.34,0.00022191,2]
[374304226,1753270255896,-460.0,0.00022191,2]
[374304227,1753270255906,-556.75,0.00022191,2]
[374304228,1753270255916,-460.0,0.00022191,2]
[374304229,1753270255926,-460.0,0.00022191,2]
[374304230,1753270255936,-474.22956193,0.00022191,2]
[374304231,1753270255945,-718.71,0.00022191,2]
[374304232,1753270255955,-470.47,0.00022191,2]
[374304233,1753270255965,-460.0,0.00022191,2]
[374304234,1753270255974,-566.09,0.00022191,2]
[374304235,1753270255985,-7017.22,0.00022191,2]
[374304236,1753270255994,-258.44214248,0.00022191,2]
[374304237,1753270256005,-837.35,0.00022191,2]
[374304238,1753270256015,-1975.6,0.00022191,2]
[374304239,1753270256025,-497.72,0.00022191,2]
[374304240,1753270256034,-460.0,0.00022191,2]
[374304241,1753270256044,-460.0,0.00022191,2]
[374304242,1753270256053,-460.0,0.00022191,2]
[374304243,1753270256063,-636.41,0.00022191,2]
[374304244,1753270256072,-194.538886,0.00022191,2]
[374304245,1753270256082,-3910.58,0.00022191,2]
[374304246,1753270256092,-460.0,0.00022191,2]
[374304247,1753270256101,-761.41,0.00022191,2]
[374304248,1753270256111,-593.02,0.00022191,2]
[374304249,1753270256120,-460.0,0.00022191,2]
[374304250,1753270256130,-870.07,0.00022191,2]
[374304251,1753270256140,-2426.86,0.00022191,2]
[374304252,1753270256150,-460.0,0.00022191,2]
[374304253,1753270256160,-2897.99,0.00022191,2]
[374304254,1753270256170,-1862.37,0.00022191,2]
[374304255,1753270256181,-460.0,0.00022191,2]
[374304256,1753270256191,-3318.78,0.00022191,2]
[374304257,1753270256201,-563.99,0.00022191,2]
[374304258,1753270256211,-460.0,0.00022191,2]
[374304259,1753270256221,-591.43,0.00022191,2]
[374304260,1753270256231,-13852.46,0.00022191,2]
[374304261,1753270256240,-3238.95,0.00022191,2]
[374304262,1753270256251,-514.65,0.00022191,2]
[374304263,1753270256261,-385.8182389,0.00022191,2]
[374304264,1753270256270,-1738.97,0.00022191,2]
[374304265,1753270256281,-460.0,0.00022191,2]
[374304266,1753270256290,-597.34,0.00022191,2]
[374304267,1753270256300,-460.0,0.00022191,2]
[374304268,1753270256312,-1270.47,0.00022191,2]
[374304269,1753270256322,-538.77,0.00022191,2]
[374304270,1753270256332,-555.41,0.00022191,2]
[374304271,1753270256342,-1243.64,0.00022191,2]